Cogmind - Beta 17 @@@ ROGUE MODE // 2026.07.03 @ 20:22:47 Player: TheSkyeDoctor Result: Destroyed by YI-UF0 with YI-UF0's Doublenader Performance ------------- Evolutions (0) 0 Regions Visited (2) 400 Robots Destroyed (24) 120 Value Destroyed (376) 376 Prototype IDs (2) 40 Alien Tech Used (0) 0 Bonus (0) 0 TOTAL SCORE: 936 Bonus ------- None Cogmind --------- Core Integrity 0/250 Matter 290/300 Energy 250/250 System Corruption 0% Temperature Cool (0) Movement Treading (160) Location -10/Mines Parts ------- > --- POWER (1) -------- Ion Engine > --- PROPULSION (2) --- Light Treads Light Treads > --- UTILITY (2) ------ Medium Storage Unit Light Armor Plating > --- WEAPON (2) ------- Beam Cannon Assault Rifle > --- INVENTORY (10) --- Ion Engine Light Treads Wheel Flight Unit Small Storage Unit Improved Terrain Scanner Hammer Peak State ------------ > --- POWER ------------ Light Ion Engine > --- PROPULSION ------- Light Treads Light Treads > --- UTILITY ---------- Small Storage Unit Seismic Detector > --- WEAPON ----------- Small Laser Beam Cannon > --- INVENTORY -------- Ion Engine Wheel Flight Unit Flight Unit Improved Terrain Scanner Light Armor Plating Beam Cannon Hammer [Rating: 8] Favorites ----------- Power Ion Engine Engine Ion Engine Propulsion Light Treads Treads Light Treads Utility Seismic Detector Device Seismic Detector Storage Small Storage Unit Protection Light Armor Plating Weapon Beam Cannon Energy Gun Small Laser Energy Cannon Beam Cannon Ballistic Gun Assault Rifle Build | -11 -10 -10 ------- Run | Yrd Mat Min Slots Evolved . | . . . Power . | . . . Propulsion . | . . . Utility . | . . . Weapon . | . . . Parts Attached 17 | 7 9 1 Power 2 | 1 1 . Engine 2 | 1 1 . Core . | . . . Reactor . | . . . Propulsion 6 | 2 4 . Treads 6 | 2 4 . Leg . | . . . Wheel . | . . . Hover . | . . . Flight . | . . . Utility 4 | 2 1 1 Device 1 | 1 . . Storage 2 | 1 1 . Processor . | . . . Hackware . | . . . Protection 1 | . . 1 Artifact . | . . . Weapon 5 | 2 3 . Energy Gun 2 | 2 . . Energy Cannon 2 | . 2 . Ballistic Gun 1 | . 1 . Ballistic Cannon . | . . . Launcher . | . . . Special Weapon . | . . . Impact Weapon . | . . . Slashing Weapon . | . . . Piercing Weapon . | . . . Special Melee Weapon . | . . . Unidentified Prototypes . | . . . Parts Lost 2 | . 1 1 Power . | . . . Propulsion . | . . . Utility 1 | . . 1 Weapon 1 | . 1 . Highest Loss Streak 1 | . 1 1 To Critical Strikes . | . . . Average Backups 6 | 1 7 7 Power . | . 1 1 Propulsion 2 | . 2 3 Utility 2 | . 2 2 Weapon 1 | . 1 1 Tool/Special . | . . . Unused Backups 7 | . 2 5 Power 1 | . . 1 Propulsion 3 | . 1 2 Utility 2 | . 1 1 Weapon 1 | . . 1 Tool/Special . | . . . Average Slot Usage (%) 99 | . 99 99 Engine 14 | . 14 14 Treads 28 | . 28 28 Device 13 | . 14 12 Storage 14 | . 14 14 Energy Gun 3 | . 4 . Energy Cannon 13 | . 12 14 Ballistic Gun 11 | . 10 14 Peak Build Rating 8 | 7 8 8 Average Rating 7 | 6 7 7 On Entrance 5 | . 7 8 Avg Prop Armor Cover (%) . | . . . Naked Turns . | . . . Heaviest Build 23 | 11 21 23 Greatest Support 40 | 40 40 40 Greatest Overweight (x) . | . . . Average Overweight (x) . | . . . Largest Inventory Capacity 10 | 8 10 10 Average Capacity 8 | 7 8 10 Most Carried 8 | 3 8 8 Average Carried 6 | 2 7 7 Final Capacity 10 | 8 10 10 Final Carried 8 | 3 8 7 Class Distribution -------------------- 100% | Mutant Dominant Class ---------------- Mutant | -10/Materials Mutant | -10/Mines Resources | -11 -10 -10 ----------- Run | Yrd Mat Min Matter Collected 537 | 270 249 18 Remotely . | . . . Salvage Created 698 | 205 433 60 Parts 46 | 16 22 8 Haulers Intercepted 2 | . 2 . Recyclers Shooed . | . . . Parts Field Recycled . | . . . Retrieved Matter . | . . . Parts Self-Destructed . | . . . Prevented . | . . . Parts Restored . | . . . Kills | -11 -10 -10 ------- Run | Yrd Mat Min Combat Hostiles Destroyed 11 | . 8 3 Guns 5 | . 5 . Cannons 3 | . 2 1 AOE 2 | . . 2 Classes Destroyed 8 | 3 5 . Worker 1 | 1 . . Tunneler 5 | 4 . 1 Hauler 2 | . 2 . Recycler 2 | 1 . 1 Operator 1 | . 1 . Watcher 2 | . 2 . Swarmer 6 | . 3 3 Grunt 5 | . 5 . Best Kill Streak 5 | 3 3 5 Combat Bots Only 3 | . 3 3 Max Kills in Single Turn 4 | 1 1 4 Gunslinging . | . . . Exploded 2 | . . 2 Melee . | . . . Uniques/NPCs Destroyed . | . . . Combat | -11 -10 -10 -------- Run | Yrd Mat Min Hostile Shots Fired 61 | . 41 20 Missed 18 | . 9 9 Hits 43 | . 32 11 Projectile 43 | . 32 11 AOE 13 | . . 13 Critical Strikes 2 | . 2 . Damage Taken 897 | . 457 440 Core 261 | . 117 144 Absorbed by Shields . | . . . Core Remaining (%) 100 | 100 . . Volleys Fired 60 | 15 41 4 Largest 2 | 2 2 2 Hottest 100 | 80 100 80 Shots Fired 120 | 30 82 8 Gun 84 | 30 50 4 Cannon 36 | . 32 4 Launcher . | . . . Special . | . . . Kinetic 29 | . 25 4 Thermal 91 | 30 57 4 Explosive . | . . . Electromagnetic . | . . . Robot Hit Streak 9 | 4 9 2 Robot Miss Streak 4 | 3 3 4 Penetration Max . | . . . Secondary Targets . | . . . Shots Hit Robots 68 | 14 51 3 Core Hits 31 | 7 19 5 Critical Kills 1 | . 1 . Critical Parts Destroyed . | . . . Critical Strikes 1 | . 1 . Destroy 1 | . 1 . Melee Attacks . | . . . Impact . | . . . Slashing . | . . . Piercing . | . . . Sneak Attacks . | . . . Combat Hostiles . | . . . Follow-up Attacks . | . . . Damage Inflicted 1137 | 153 675 309 Guns 573 | 153 410 10 Cannons 299 | . 265 34 Explosions 265 | . . 265 Melee . | . . . Ramming . | . . . Kinetic 196 | . 186 10 Thermal 941 | 153 489 299 Explosive . | . . . Electromagnetic . | . . . Impact . | . . . Slashing . | . . . Piercing . | . . . Highest Corruption . | . . . Average Corruption . | . . . Corruption Purged . | . . . Corruption Blocked . | . . . Overload Shots . | . . . Overflow Damage 2 | . 2 . Projectiles 2 | . 2 . Explosions . | . . . Melee . | . . . Knockbacks . | . . . Impact . | . . . Kinetic . | . . . Secondary . | . . . Self-Inflicted Damage 66 | . . 66 Shots 2 | . . 2 Rammed . | . . . Targets Rammed . | . . . Kicked . | . . . Crushed . | . . . Highest Temperature 267 | 90 267 96 Average Temperature 74 | 34 88 52 Received Heat Transfer 222 | . 222 . Siege Activations . | . . . Martial Activations . | . . . Shielding Activations . | . . . Robots Disrupted . | . . . Combat Hostiles . | . . . Robots Corrupted . | . . . Combat Hostiles . | . . . Parts Fried . | . . . Impact Corruptions . | . . . Robots Melted 1 | . 1 . Combat Hostiles 1 | . 1 . Parts Melted 3 | 1 2 . Heat Transferred 1804 | 350 1080 374 Parts Sabotaged . | . . . Parts Stolen . | . . . Parts Stripped . | . . . Power Chain Reactions . | . . . Alert | -11 -10 -10 ------- Run | Yrd Mat Min Maximum Alert Level . | . . . Low Security (%) 100 | 100 100 100 Level 1 . | . . . Level 2 . | . . . Level 3 . | . . . Level 4 . | . . . Level 5 . | . . . High Security . | . . . Max Security . | . . . Peak Influence 128 | 5 91 128 Initial . | . . . Average 19 | 1 12 64 Influence Increases 398 | 30 240 128 Destroy 0b10 Robot/C 220 | . 160 60 Destroy 0b10 Robot/NC 65 | 30 25 10 Destroy Leader 58 | . 48 10 Successful Hack 6 | . 6 . Disable Machine 30 | . . 30 Destroy Structure 19 | . 1 18 Influence Decreases 390 | 30 240 120 Time Decay 370 | 30 230 110 Lost Part 20 | . 10 10 Squads Dispatched 1 | . 1 . Investigation . | . . . Extermination . | . . . Reinforcement 1 | . 1 . Assault . | . . . Garrison . | . . . Intercept . | . . . Searches Triggered . | . . . Construction Impeded . | . . . Haulers Reinforced . | . . . Active Scanning Responses . | . . . Cargo Convoy Interrupts . | . . . Stealth | -11 -10 -10 --------- Run | Yrd Mat Min Distress Signals . | . . . Communications Jammed . | . . . Distress Signals . | . . . Times Spotted 17 | . 13 4 Peak Tracking Total 3 | . 3 3 Tactical Retreats . | . . . Traps | -11 -10 -10 ------- Run | Yrd Mat Min Traps Triggered 2 | . 2 . Indirectly . | . . . Trap Hack Attempts . | . . . Triggered . | . . . Disarmed . | . . . Reprogrammed . | . . . Reused . | . . . Traps Extracted . | . . . Installed . | . . . Triggered . | . . . Machines | -11 -10 -10 ---------- Run | Yrd Mat Min Machines Disabled 2 | . . 2 Max in Single Turn 2 | . . 2 Machines Repaired . | . . . Machines Dismantled . | . . . Machines Sabotaged . | . . . Overloaded Fab Kills . | . . . Hacking | -11 -10 -10 --------- Run | Yrd Mat Min Machines Accessed 4 | . 4 . Terminals 4 | . 4 . Fabricators . | . . . Repair Stations . | . . . Recycling Units . | . . . Scanalyzers . | . . . Garrison Access . | . . . Total Hacks 10 | . 10 . Successful 2 | . 2 . Failed 8 | . 8 . Catastrophic 3 | . 3 . Database Lockouts . | . . . Manual 9 | . 9 . Terminals 10 | . 10 . Fabricators . | . . . Repair Stations . | . . . Recycling Units . | . . . Scanalyzers . | . . . Garrison Access . | . . . Terminal Hacks 1 | . 1 . Prototype ID Bank 1 | . 1 . Fabricator Hacks . | . . . Repair Station Hacks . | . . . Recycling Unit Hacks . | . . . Scanalyzer . | . . . Garrison Access Hacks . | . . . Unauthorized Hacks 1 | . 1 . Terminals 1 | . 1 . Assimilate 1 | . 1 . Fabricators . | . . . Repair Stations . | . . . Recycling Units . | . . . Scanalyzers . | . . . Garrison Access . | . . . Data Cores Recovered . | . . . Used . | . . . Hacking Detections 4 | . 4 . Full Trace Events 1 | . 1 . Feedback Events . | . . . Feedback Blocked . | . . . Robot Schematics Acquired . | . . . Robots Built . | . . . Authchips . | . . . Time . | . . . Total Robot Build Rating . | . . . Part Schematics Acquired . | . . . Parts Built . | . . . Authchips . | . . . Time . | . . . Total Part Build Rating . | . . . Part Studies Acquired . | . . . Parts Repaired . | . . . Time . | . . . Parts Recycled . | . . . Recycled Matter . | . . . Retrieved Matter . | . . . Retrieved Components . | . . . Parts Scanalyzed . | . . . Part Schematics Acquired . | . . . Parts Damaged . | . . . Bothacking | -11 -10 -10 ------------ Run | Yrd Mat Min Used RIF Installer . | . . . Robots Hacked . | . . . Non-combat . | . . . Combat . | . . . Robot Hacks Applied . | . . . Relay Couplers Released . | . . . Fabnet Peak Effective % . | . . . Robots Rewired . | . . . Allies Hacked . | . . . Hacks Repelled . | . . . Allies | -11 -10 -10 -------- Run | Yrd Mat Min Total Allies . | . . . Largest Group . | . . . Highest-Rated Group . | . . . Highest-Rated Ally . | . . . Total Orders . | . . . Ally Attacks . | . . . Total Damage . | . . . Kills . | . . . Allies Corrupted . | . . . Allies Melted . | . . . Intel | -11 -10 -10 ------- Run | Yrd Mat Min Active Infowar (turns) 1556 | 115 1215 226 Seismic 1556 | 115 1215 226 Robot Analysis Total . | . . . Derelict Logs Recovered 1 | . . 1 Drone Launches . | . . . Drone Recoveries . | . . . Exploration | -11 -10 -10 ------------- Run | Yrd Mat Min Turns Passed 1651 | 185 1215 251 Spaces Moved 848 | 84 617 147 Core 6 | 6 . . Treads 842 | 78 617 147 Legs . | . . . Wheels . | . . . Hover . | . . . Flight . | . . . Fastest Speed 50 | 50 160 160 Average Speed 159 | 152 160 160 Slowest Speed 160 | 160 160 160 Overloaded Moves . | . . . Propulsion Burnouts . | . . . Robots Hopped . | . . . Potential Cave-ins . | . . . Cave-ins Triggered . | . . . Exploration Rate (%) 45 | 4 92 39 Regions Visited 2 Branch Regions 1 Pre-discovered Areas 1 | . . 1 Known Exits Taken . | . . . Unknown Exits Taken 2 | 1 1 . Scrap Searched 1 | . . 1 Spaces Dug . | . . . Terrain Destroyed 19 | . . 19 Melee . | . . . Projectile . | . . . AOE 19 | . . 19 Terrain Rammed . | . . . Walls Destroyed . | . . . Machines Disabled . | . . . Actions | -11 -10 -10 --------- Run | Yrd Mat Min Total 1027 | 108 765 154 Wait 84 | . 82 2 Move 846 | 83 616 147 Hop . | . . . Pick Up 10 | 3 7 . Fast Attach 10 | 7 3 . Attach 2 | . 1 1 Detach 1 | . 1 . Swap 5 | . 5 . Drop 9 | . 9 . Fire 60 | 15 41 4 Melee . | . . . Ram . | . . . Kick . | . . . Crush . | . . . Escape Stasis . | . . . Rewire . | . . . Trap . | . . . Miscellaneous . | . . . Route ------- -11/Scrapyard -10/Materials (discovered 4 exits: [*Mat x3] / [*Min]) -10/Mines (discovered 2 exits: [*Mat] / [*Sub]) History --------- Turn | Location | Event 7 | -11/Scrapyard | Discovered new exit (range 15) 186 | -11/Scrapyard | Entered Materials 302 | -10/Materials | Build established: Mutant 585 | -10/Materials | Discovered new exit (range 5) 818 | -10/Materials | Discovered new exit (range 16) 1056 | -10/Materials | Discovered new exit (range 15) 1391 | -10/Materials | Discovered new exit (range 6) 1401 | -10/Materials | Entered Mines 1422 | -10/Mines | Discovered new exit (range 8) 1426 | -10/Mines | Core integrity fell below 50% 1461 | -10/Mines | Learned location of Recycling (-9) 1555 | -10/Mines | Discovered new exit (range 6) 1630 | -10/Mines | Core integrity fell below 20% 1652 | -10/Mines | Destroyed by YI-UF0 with YI-UF0's Doublenader Last Messages --------------- 01497_ Found 51 Matter. 01498_ Acquired 6 matter. 01506_ T-07 Excavator is excavating. 01555_ EXIT=FOUND 01557_ T-07 Excavator is excavating. 01612_ K-01 Serf destroyed. 01627_ Seismic Detector destroyed. 01632_ The unstable cave ceiling collapses. 01636_ YI-UF0 mumbles something. 01637_ The unstable cave ceiling collapses. 01640_ R-06 Scavenger collects Com. Wheel. 01641_ The unstable cave ceiling collapses. 01643_ U-05 Engineer lays Concrete. 01646_ The unstable cave ceiling collapses. 01646_ U-05 Engineer lays Concrete. 01647_ R-06 Scavenger collects Lgt. Assault Rifle. 01647_ U-05 Engineer builds a Wall. 01650_ The unstable cave ceiling collapses. 01651_ U-05 Engineer builds a Wall. Map ----- +----------------------------------------------------+ | ???????????????# ??#####?## = "#????# ## | | ???????????????# ??????????# % "#????# ## | | ???????????????# ????????????# < "#???## | | ???????????????#?????????????### ##??## | | ???????????????????????????????## # ###?# | | ?????????????????????????????????# ## | | ?????????????????????????????????# # | | ?????????????????????????????????# ## | | ??????????????????????????????????# ## ##? | | ???????????????????????????????????# # ##?? | | ???????????????????????????????????# #% # ##?? | | ??????????????????????????????????# | ## #?? | | ?????????????????????????????????? ## ##? | | ?????????????????????????????????? # # ## | | ?????????????????????????????????# """ # | | ?????????????????????#######????# """ | | ?????????????????????# ####### g """ | | ?????????????????????# # # # # | | ?????????????????????# #### ### | | ?????????????????????# #??? #?? | | ?????????????????????# ####??? ? | | ??????????????? # ###?????? | | ?????????????????? ??#?# ###?????????#### | | ?????????????????????# # ! # ##???????????? | | ?????????????????##### #????????? | | ???????????????# @ #????????? | | ???????????????# ####### r # #????????? | | ??????????????????????# % ????????? | | ??????????????????????######## ???????? | | ?????????????????????????????# ## #u *???????? | | ?????????????????????????????## #? # # ???????? | | ??????????????????????????????### ## #? ???????? | | ????????????????????????????????? # ?? ?????????? | | ?????????????????????????????????###?????????????? | | ?????????????????????????????????????????????????? | | ?????????????????????????????????????????????????? | | ?????????????????????????????????????????????????? | | ?????????????????????????????????????????????????? | | ?????????????????????????????????????????????????? | | ?????????????????????????????????????????????????? | | ?????????????????????????????????????????????????? | | ?????????????????????????????????????????????????? | | ?????????????????????????????????????????????????? | | ?????????????????????????????????????????????????? | | ?????????????????????????????????????????????????? | | ?????????????????????????????????????????????????? | | ?????????????????????????????????????????????????? | | ?????????????????????????????????????????????????? | | ?????????????????????????????????????????????????? | | ?????????????????????????????????????????????????? | +----------------------------------------------------+ Best States ------------- Heat Dissipation 25 Energy Generation 10 Energy Capacity 250 Matter Stores 300 Matter Capacity 300 Sight Range 16 Terrain Scan Density 10 Armor Coverage 150 Evasion (%) 40 Recoil Reduction 2 Item Schematics ----------------- None Robot Schematics ------------------ None Fabricated ------------ Nothing Repaired ---------- Nothing Studied --------- None Alien Tech Used ----------------- None Achievements -------------- None Challenges ------------ None Game ------ Seed ConceptSlugFilter Manual? 0 Play Time 00:07:50 Cumulative 114.0 hours Start 2026.07.03 @ 20:15:42 End 2026.07.03 @ 20:22:47 Sessions 1 Manual Loads 0 Difficulty Rogue Special Mode None Game No. 243 Rogue 243 Adventurer 0 Explorer 0 Win Type - Total 0 Types 0/0/0/0/0/0/0/0/0/0 Lore% 50 Gallery% 51 Achievement% 41 Wizard Run 0 Options --------- Layout 2 ASCII 0 Keyboard 1 Movement Arrows Keybinds 0 Fullscreen 1 Font 24/Smallcaps Map View 50x44 Zoom Use 0% Tactical HUD 1 Map Filters NONE Filters NONE Steam 1 RUN: 926ccfaa-6aac-4c01-9289-0ecfb09d5b9a